bitfinex-derivatives/quotes_ETHF0:USTF0_20250612
["timestamp","ask_amount","ask_price","bid_price","bid_amount"]
[1749741978188,0.73138088,2754.6,2754.5,0.72593]
[1749741978393,0.00545088,2754.6,2754.5,0.72593]
[1749741978591,0.73135088,2754.6,2754.5,0.72593]
[1749741978795,0.00545088,2754.6,2754.5,0.72593]
[1749741979794,0.00545088,2754.6,2754.5,0.7879472]
[1749741983992,0.73135088,2754.6,2754.5,0.0620172]
[1749741984300,3.93915088,2754.6,2754.5,0.0620172]
[1749741986904,3.21325088,2754.6,2754.5,0.7879472]
[1749741987802,3.93915088,2754.6,2754.5,0.7879472]
[1749741988501,3.93915088,2754.6,2754.5,0.0620172]
[1749741989100,3.21325088,2754.6,2754.5,0.7879472]
[1749741989303,3.93915088,2754.6,2754.5,0.7879472]
[1749741990004,3.93915088,2754.6,2754.5,0.0620172]
[1749741991507,0.72604,2754.1,2754.0,0.00545088]
[1749741991702,5.72604,2754.1,2754.0,0.00545088]
[1749741991907,0.72622,2753.4,2753.3,7.12524]
[1749741992204,0.72628,2753.3,2753.2,0.72627]
[1749741992601,0.72626,2753.3,2753.2,0.72625]
[1749741993196,3.2078,2753.4,2753.0,3.21325088]
[1749741993505,0.72627,2753.3,2753.2,0.72626]
[1749741994003,0.7263,2753.1,2753.0,3.21325088]
[1749741994212,0.7263,2753.1,2753.0,0.00545088]
[1749741994409,5.7263,2753.1,2753.0,0.00545088]
[1749741994701,8.2078,2753.1,2752.1,3.2078]
[1749741994911,6.399,2753.0,2752.1,5.02417]
[1749741995098,6.399,2753.0,2752.1,3.2078]
[1749741995403,6.399,2753.0,2752.3,1.81629]
[1749741995604,0.73181088,2752.9,2752.8,0.72638]
[1749741995809,0.00545088,2752.9,2752.5,3.2078]
[1749741996006,0.00545088,2752.9,2752.8,0.72638]
[1749741996305,0.00545088,2752.9,2752.8,3.93418]
[1749741996505,3.2078,2753.6,2752.9,1.81589]
[1749741996911,0.72621,2753.5,2753.4,0.72622]
[1749741997111,0.72625,2753.3,2753.2,0.0620172]
[1749741997403,3.93405,2753.3,2753.2,0.0620172]
[1749741997605,8.93405,2753.3,2753.2,0.0620172]
[1749741998609,32.15605,2753.3,2753.2,0.0620172]
[1749741999608,8.93405,2753.3,2753.2,0.0620172]
[1749741999905,3.2078,2753.3,2753.2,0.7882872]
[1749742000104,0.00545088,2753.5,2753.4,0.72622]
[1749742000305,0.73164088,2753.5,2753.4,0.72622]
[1749742002412,0.00545088,2753.5,2753.2,0.0620172]
[1749742002608,0.72625,2753.3,2753.2,0.7882772]
[1749742003010,0.72625,2753.3,2753.2,0.0620172]
[1749742003211,3.93405,2753.3,2753.2,0.0620172]
[1749742004212,10.26605,2753.3,2753.2,0.0620172]
[1749742005613,3.93405,2753.3,2753.2,0.0620172]
[1749742005912,10.26605,2753.3,2753.2,0.0620172]
[1749742006805,3.93405,2753.3,2753.2,0.0620172]
[1749742007011,10.26705,2753.3,2753.2,0.7882872]
[1749742007212,10.26705,2753.3,2753.2,0.0620172]
[1749742008515,10.26705,2753.3,2752.5,0.72645]
[1749742008516,0.72646,2752.6,2752.5,0.72645]
[1749742009019,0.7264,2752.8,2752.7,0.72637]
[1749742009209,6.333,2752.9,2752.5,1.81615]
[1749742009413,3.2078,2753.2,2752.7,1.81599]
[1749742009609,3.2078,2753.2,2753.1,0.7263]
[1749742009813,0.00545088,2753.5,2753.4,0.72622]
[1749742010518,0.73164088,2753.5,2753.4,0.72622]
[1749742010913,0.72625,2753.4,2753.3,0.72623]
[1749742011314,0.72627,2753.3,2753.2,0.72625]
[1749742011714,0.72624,2753.4,2753.3,0.72622]
[1749742011920,0.73168088,2753.5,2753.4,0.72622]
[1749742012221,0.7263,2753.2,2753.1,0.72628]
[1749742012718,0.72626,2753.3,2753.2,0.72624]
[1749742012919,0.73167088,2753.5,2753.4,0.72622]
[1749742013316,0.00545088,2753.5,2752.7,3.2078]
[1749742013512,0.72636,2753.0,2752.9,0.72632]
[1749742013915,0.72631,2753.2,2753.1,0.72628]
[1749742014217,7.05926,2753.3,2753.2,0.72624]
[1749742014422,0.72629,2753.2,2753.1,0.72628]
[1749742014724,0.72628,2753.2,2753.1,0.72628]
[1749742014918,0.72633,2753.1,2753.0,0.72631]
[1749742016022,5.02344,2753.3,2752.7,3.2078]
[1749742016227,0.72643,2752.7,2752.6,0.72641]
[1749742016427,0.7264,2752.8,2752.7,0.72638]
[1749742016719,7.05937,2752.9,2752.8,0.72635]
[1749742017020,3.2078,2753.0,2752.6,3.2078]
[1749742017217,3.2078,2753.0,2752.5,0.0620172]
[1749742017218,0.72641,2752.8,2752.7,0.72639]
[1749742017414,0.7264,2752.8,2752.7,0.72637]
[1749742018321,0.72643,2752.6,2752.5,0.0620172]
[1749742018515,3.93423,2752.6,2752.5,0.0620172]
[1749742018725,3.2078,2752.6,2752.5,0.7884772]
[1749742018911,6.334,2752.9,2752.7,0.72638]
[1749742019111,6.334,2752.9,2752.5,0.7884772]
[1749742019112,0.72638,2752.9,2752.8,0.72635]
[1749742019421,3.2078,2753.0,2752.9,0.72635]
[1749742019621,3.9342,2753.0,2752.9,0.72635]
[1749742019924,0.72637,2752.9,2752.8,0.72637]
[1749742020223,0.72637,2752.9,2752.8,0.72635]
[1749742020523,0.7264,2753.0,2752.9,0.72635]
[1749742020721,0.7264,2753.0,2752.6,1.81609]
[1749742020925,0.72637,2752.9,2752.8,0.72635]
[1749742021219,1.81589,2752.9,2752.5,3.2698172]
[1749742021416,0.72643,2752.6,2752.5,0.0620172]
[1749742023220,0.72643,2752.6,2751.4,54.01169249]
[1749742023221,0.72664,2751.8,2751.7,3.2078]
[1749742023423,0.72664,2751.8,2751.3,5.06087249]
[1749742023424,29.563,2752.1,2751.3,3.2078]
[1749742023625,0.72665,2751.8,2751.7,0.72664]
[1749742023825,0.72665,2751.8,2751.7,0.72665]
[1749742024021,0.72665,2751.8,2751.4,1.81688]
[1749742024022,23.244,2752.0,2751.3,5.02471]
[1749742024322,0.72665,2751.8,2751.7,0.72665]
[1749742024525,0.00545088,2751.9,2751.4,0.06746808]
[1749742024727,1.82202088,2751.9,2751.4,0.06746808]
[1749742024922,0.72671,2751.6,2751.5,0.7267]
[1749742025329,0.00545088,2751.9,2751.6,0.72669]
[1749742025330,0.72669,2751.7,2751.6,0.72669]
[1749742025631,0.72672,2751.5,2751.4,0.06746808]
[1749742025817,23.95172,2751.5,2751.4,0.06746808]
[1749742026018,23.95172,2751.5,2750.9,3.2078]
[1749742026019,0.72685,2751.0,2750.9,3.2078]
[1749742026428,30.32185,2751.0,2750.9,3.2078]
[1749742026629,23.305,2751.0,2750.9,3.2078]
[1749742026928,23.305,2751.0,2749.8,3.2078]
[1749742026929,8.2078,2751.0,2749.8,3.2078]
[1749742027120,0.7271,2750.1,2749.9,0.72714]
[1749742027327,0.00545088,2750.3,2749.8,3.2078]
[1749742027528,0.00545088,2750.3,2749.8,3.93495]
[1749742027727,0.73251088,2750.3,2750.1,0.72708]
[1749742027925,0.00545088,2750.3,2749.8,3.93496]
[1749742028126,0.00545088,2750.3,2749.7,0.00545088]
[1749742028433,0.72717,2749.8,2749.7,0.00545088]
[1749742028634,30.40917,2749.8,2749.7,0.00545088]
[1749742028825,3.2078,2750.1,2749.7,0.73262088]
[1749742029020,29.677,2750.0,2749.7,0.00545088]
[1749742029321,3.2078,2750.1,2749.9,0.72712]
[1749742029525,23.339,2750.0,2749.9,0.72712]
[1749742029726,23.339,2750.0,2749.7,0.00545088]
[1749742029929,0.72716,2749.9,2749.7,0.00545088]
[1749742030126,0.72717,2749.8,2749.7,0.00545088]
[1749742030729,0.72737,2749.1,2748.7,0.14212419]
[1749742030932,29.734,2749.5,2748.9,3.2078]
[1749742031132,3.2078,2749.6,2749.0,0.72737]
[1749742031427,3.93513,2749.2,2748.7,0.14212419]
[1749742031628,3.2078,2749.2,2748.7,0.14212419]
[1749742031825,3.2078,2749.2,2749.1,0.72736]
[1749742032229,3.93505,2749.5,2748.7,8.29772419]
[1749742032532,0.4364,2749.2,2749.1,0.72736]
[1749742032929,0.4364,2749.2,2749.1,5.72736]
[1749742033134,3.2078,2749.8,2749.2,1.81833]
[1749742033331,3.2078,2750.2,2749.4,1.8182]
[1749742033526,3.2078,2749.9,2749.2,3.2078]
[1749742033727,0.72718,2749.8,2749.6,0.72721]
[1749742033929,26.6338,2749.8,2748.9,3.2078]
[1749742034139,3.2078,2749.5,2748.9,3.2078]
[1749742034331,7.19121,2749.7,2749.5,0.72723]
[1749742034531,0.72722,2749.6,2748.9,3.2078]
[1749742034737,3.2078,2749.5,2749.4,0.72728]
[1749742035428,0.72729,2749.4,2748.9,3.2078]
[1749742035630,23.446,2750.1,2748.7,0.14212419]
[1749742035631,3.2078,2749.2,2748.7,0.14212419]
[1749742035830,3.93507,2749.5,2749.3,0.7273]
[1749742036036,9.6718,2749.5,2748.7,0.14212419]
[1749742036235,9.6718,2749.5,2749.0,0.72736]
[1749742036438,9.6718,2749.5,2748.7,0.14212419]
[1749742036640,3.2078,2749.2,2748.7,0.14212419]
[1749742036834,3.93515,2749.2,2749.0,0.72738]
[1749742037038,3.93514,2749.2,2749.0,0.72737]
[1749742037233,3.93514,2749.2,2748.7,0.14212419]
[1749742037234,0.72744,2748.8,2748.7,0.14212419]
[1749742037441,0.72743,2748.9,2748.7,0.86958419]
[1749742037640,3.2078,2749.2,2748.7,0.14212419]
[1749742037836,3.2078,2749.2,2749.1,0.72736]
[1749742038142,3.2078,2749.6,2749.5,0.72725]
[1749742038339,3.2078,2749.6,2749.4,0.72726]
[1749742038533,3.2078,2749.6,2749.2,0.72731]
[1749742038731,3.2078,2749.3,2748.7,0.14212419]
[1749742038931,0.72744,2748.8,2748.7,0.14212419]
[1749742039241,9.6728,2749.0,2748.7,0.14212419]
[1749742039442,0.72744,2748.8,2748.7,0.14212419]
[1749742039834,3.2078,2748.6,2746.4,3.2078]
[1749742040034,3.2078,2747.1,2747.0,0.72791]
[1749742040435,3.21325088,2747.8,2747.1,0.72789]
[1749742040641,0.00545088,2747.8,2747.7,0.72773]
[1749742040834,0.00545088,2747.8,2747.7,5.72773]
[1749742041640,0.0041,2748.3,2748.2,0.72759]
[1749742042639,0.0041,2748.3,2748.0,0.00545088]
[1749742043134,3.93542,2748.1,2748.0,0.00545088]
[1749742043735,10.40242,2748.1,2748.0,0.00545088]
[1749742044145,3.93542,2748.1,2748.0,0.00545088]
[1749742045338,8.2078,2748.1,2746.6,3.2078]
[1749742045638,22.00045088,2748.5,2746.8,0.72795]
[1749742045639,0.72791,2747.1,2746.8,0.72795]
[1749742045843,3.2078,2747.2,2746.4,3.2078]
[1749742046544,3.2078,2746.9,2746.4,0.72807]
[1749742046742,3.2078,2746.9,2746.8,0.72797]
[1749742046942,0.0054608,2747.1,2746.6,6.738]
[1749742047139,0.0054608,2747.1,2746.4,1.82012]
[1749742047342,0.0054608,2747.1,2747.0,0.72791]
[1749742047735,3.2078,2747.8,2747.4,0.72779]
[1749742048048,0.72777,2747.6,2747.4,0.72779]
[1749742048350,3.2078,2747.7,2746.9,3.2078]
[1749742048637,0.72778,2747.6,2747.3,0.72781]
[1749742048837,0.0054608,2747.6,2747.3,3.2078]
[1749742049243,0.0054608,2747.6,2747.0,0.0054608]
[1749742049539,0.7332308,2747.6,2747.0,0.0054608]
[1749742049742,0.0054608,2747.6,2747.5,0.72778]
[1749742050539,0.004,2748.2,2747.5,0.72778]
[1749742050540,0.004,2748.2,2748.1,0.72762]
[1749742051149,0.004,2748.2,2748.1,3.93542]
[1749742051549,0.004,2748.2,2747.8,8.55822]
[1749742051550,0.72761,2748.2,2747.8,3.2078]
[1749742051737,0.7330208,2748.4,2748.1,3.2078]
[1749742051942,0.0054608,2748.4,2748.3,0.72757]
[1749742052442,0.0054608,2748.4,2748.3,12.46757]
[1749742052736,3.2078,2749.0,2748.9,0.72741]
[1749742052937,3.2078,2749.0,2748.7,0.0620172]
[1749742053137,3.2078,2749.0,2748.9,0.72741]
[1749742053344,3.2078,2749.0,2748.7,0.0620172]
[1749742053345,3.2078,2749.0,2748.8,0.72743]
[1749742053538,3.9352,2749.0,2748.9,0.72741]
[1749742053746,3.9352,2749.0,2748.8,0.72742]
[1749742053940,3.2078,2749.0,2748.7,0.7894772]
[1749742054143,0.72743,2748.9,2748.7,0.0620172]
[1749742054343,3.9352,2749.0,2748.8,0.72744]
[1749742054544,0.72741,2748.9,2748.8,0.72744]
[1749742054742,3.2078,2749.0,2748.8,0.72744]
[1749742055045,22.003,2748.9,2747.2,3.2078]
[1749742055245,25.2108,2748.9,2748.2,3.2078]
[1749742055549,9.9468,2748.9,2748.4,0.72752]
[1749742055738,9.9468,2748.9,2748.0,1.81909]
[1749742055940,3.2078,2748.9,2748.2,5.02679]
[1749742056141,3.93522,2748.9,2748.8,0.0620172]
[1749742057344,0.72742,2748.9,2748.8,0.0620172]
[1749742057548,3.93522,2748.9,2748.8,0.0620172]
[1749742058145,1.81867,2748.7,2748.2,0.7330508]
[1749742058351,0.72755,2748.4,2748.3,0.72756]
[1749742058548,1.81863,2748.8,2748.2,0.7330308]
[1749742058744,9.9468,2748.9,2748.2,0.0054608]
[1749742059047,3.2078,2748.9,2748.8,0.0620172]
[1749742059251,3.93521,2748.9,2748.8,0.0620172]
[1749742061254,4.96992711,2748.9,2748.8,0.0620172]
[1749742061448,0.72757,2748.3,2748.2,0.0054608]
[1749742061853,0.7277,2747.8,2747.7,3.93552]
[1749742062154,0.7277,2747.8,2747.7,3.2078]
[1749742063552,0.7277,2747.8,2747.7,3.93553]
[1749742063756,0.72769,2747.9,2747.8,0.72768]
[1749742064451,0.7277,2747.8,2747.7,3.2078]
[1749742064755,0.72775,2747.6,2747.5,0.0054608]
[1749742065750,0.72788,2747.2,2747.1,0.72786]
[1749742065954,0.72785,2747.3,2747.2,0.72784]
[1749742066461,0.72788,2747.2,2747.1,0.72787]
[1749742066658,0.72791,2747.0,2746.9,3.93573]
[1749742067961,0.0054608,2747.4,2746.9,3.2078]
[1749742068155,0.72788,2747.2,2747.1,0.72787]
[1749742068461,0.72791,2747.0,2746.9,3.93574]
[1749742068857,0.72791,2747.0,2746.9,3.2078]
[1749742069550,0.72791,2747.0,2746.9,3.93574]
[1749742070057,0.72788,2747.2,2747.1,0.72789]
[1749742070356,0.72791,2747.1,2747.0,0.72789]
[1749742071058,0.72791,2747.0,2746.9,3.2698172]
[1749742071258,0.72791,2747.0,2746.9,0.0620172]
[1749742071259,7.46891,2747.0,2746.9,0.0620172]
[1749742071556,3.2078,2747.2,2746.9,0.0620172]
[1749742071755,0.72791,2747.0,2746.9,0.0620172]
[1749742071957,0.72791,2747.0,2746.9,0.7899572]
[1749742072154,0.728,2747.1,2747.0,0.72791]
[1749742072559,1.45589,2747.1,2747.0,0.72791]
[1749742072762,0.728,2747.1,2747.0,0.72791]
[1749742072953,0.728,2747.1,2746.9,0.0620172]
[1749742072954,0.72791,2747.0,2746.9,0.0620172]
[1749742073161,1.45591,2747.1,2747.0,0.72791]
[1749742073464,0.728,2747.1,2747.0,0.72791]
[1749742073763,1.45589,2747.1,2747.0,0.72791]
[1749742074165,1.45589,2747.1,2747.0,0.0134766]
[1749742075254,1.45589,2747.1,2747.0,0.7413866]
[1749742075454,1.45589,2747.1,2746.6,1.82003]
[1749742075655,1.45589,2747.1,2744.1,0.14212419]
[1749742075656,3.2078,2745.2,2744.1,0.14212419]
[1749742075858,3.2078,2744.8,2744.1,0.14212419]
[1749742076056,3.2078,2744.8,2744.5,0.72856]
[1749742076467,3.2078,2744.8,2744.2,3.2078]
[1749742076664,3.93631,2744.8,2744.4,0.7286]
[1749742076865,3.9363,2744.8,2744.4,0.7286]
[1749742077061,3.2078,2744.8,2744.5,0.72856]
[1749742077259,7.11,2744.7,2744.1,0.14212419]
[1749742077459,10.3178,2744.8,2744.1,0.14212419]
[1749742077665,3.2078,2744.8,2744.1,0.14212419]
[1749742077962,3.2078,2744.8,2744.7,0.72852]
[1749742078965,0.0054608,2744.9,2744.8,0.7285]
[1749742079361,0.72835,2745.4,2745.1,0.72841]
[1749742079569,3.2078,2745.5,2745.3,0.72834]
[1749742079868,3.93604,2745.8,2745.1,3.2078]
[1749742080070,0.72829,2745.6,2744.8,3.2078]
[1749742080272,3.93611,2745.5,2745.2,0.72837]
[1749742080567,0.72839,2745.2,2745.1,0.0054608]
[1749742080768,3.93619,2745.2,2745.1,0.0054608]
[1749742081064,3.93619,2745.2,2744.1,0.14212419]
[1749742081065,0.72866,2744.2,2744.1,0.14212419]
[1749742081270,3.93646,2744.2,2744.1,0.14212419]
[1749742081871,1.82174,2744.1,2743.0,3.2078]
[1749742082066,3.2078,2743.6,2743.0,3.2078]
[1749742082372,1.8273708,2743.8,2742.7,3.2078]
[1749742082373,3.2078,2743.3,2742.7,3.2078]
[1749742082664,7.1194608,2743.8,2742.5,40.8]
[1749742082665,0.0054608,2743.8,2743.6,0.7288]
[1749742082866,0.7342308,2743.8,2743.5,0.72883]
[1749742083067,3.2078,2743.7,2742.9,3.2078]
[1749742083264,3.2078,2743.4,2742.6,10.3218]
[1749742083467,3.2078,2743.7,2743.0,5.03019]
[1749742083670,3.2078,2743.7,2743.6,0.72881]
[1749742084069,3.2078,2743.7,2743.0,3.2078]
[1749742084372,3.2078,2743.7,2742.9,5.03025]
[1749742084672,3.2078,2743.7,2742.9,3.2078]
[1749742085072,3.93661,2743.7,2743.4,0.72886]
[1749742085366,10.3238,2743.7,2742.9,3.2078]
[1749742085572,0.72885,2743.5,2743.2,0.7289]
[1749742085760,3.2078,2743.7,2742.9,5.03025]
[1749742085761,7.116,2743.6,2742.9,5.03025]
[1749742085965,7.84482,2743.6,2743.4,0.72886]
[1749742086161,7.84482,2743.6,2742.9,5.03025]
[1749742086162,3.2078,2743.7,2743.1,1.82237]
[1749742086367,0.0054608,2743.8,2743.7,0.72879]
[1749742086974,7.1214608,2743.8,2743.0,3.2078]
[1749742087167,3.2078,2743.4,2743.3,0.72889]
[1749742087367,8e-07,2743.8,2743.7,0.72879]
[1749742087577,3.2078,2745.0,2743.8,3.64378]
[1749742087874,3.2078,2745.0,2744.9,0.72847]
[1749742088272,0.7284,2745.2,2744.8,3.2078]
[1749742088570,0.0054608,2745.3,2744.7,0.0054608]
[1749742088776,0.72842,2745.1,2744.9,0.72845]
[1749742088976,0.0054608,2745.3,2744.8,0.72847]
[1749742089175,0.0054608,2745.3,2744.7,0.0054608]
[1749742089373,0.72844,2745.0,2744.8,0.72848]
[1749742089578,3.2078,2745.1,2744.7,0.0054608]
[1749742090080,0.72844,2745.1,2744.9,0.72846]
[1749742090268,0.0054608,2745.3,2744.9,0.72846]
[1749742090472,0.0054608,2745.3,2744.7,0.0054608]
[1749742090782,0.0054608,2745.3,2745.2,0.72839]
[1749742090980,0.0054608,2745.3,2745.1,0.7284]
[1749742091176,0.7338308,2745.3,2744.8,3.2078]
[1749742091376,0.0054608,2745.3,2744.8,3.2078]
[1749742091577,0.0054608,2745.3,2744.7,0.0054608]
[1749742091977,0.7285,2744.8,2744.7,0.0054608]
[1749742092172,0.72846,2745.0,2744.7,0.0054608]
[1749742092384,3.93624,2745.1,2745.0,0.72844]
[1749742092574,3.2078,2745.1,2745.0,0.72844]
[1749742092780,0.0054608,2745.3,2744.7,1.8267708]
[1749742092980,0.7338408,2745.3,2744.7,1.8267708]
[1749742093179,0.0054608,2745.3,2744.7,0.0054608]
[1749742093682,0.72844,2745.1,2745.0,0.72844]
[1749742094182,0.0054608,2745.3,2745.2,0.72839]
[1749742095776,3.2078,2745.7,2745.6,0.72828]
[1749742096186,3.2078,2746.3,2745.7,1.82065]
[1749742096381,3.28062525,2746.3,2746.2,0.72811]
[1749742097082,1.82032,2746.2,2745.3,3.2078]
[1749742097284,5.02819,2746.1,2745.3,3.2078]
[1749742097590,3.2078,2745.8,2745.3,3.2078]
[1749742097777,0.7283,2745.6,2745.3,3.2078]
[1749742097981,0.7283,2745.6,2745.5,0.7283]
[1749742098187,1.82068,2745.7,2744.8,23.85221]
[1749742098385,0.72837,2745.3,2745.2,0.72838]
[1749742098585,0.72838,2745.3,2745.2,0.72838]
[1749742098787,7.116,2745.7,2745.3,0.72836]
[1749742098990,3.2078,2745.8,2745.1,3.2078]
[1749742099186,1.16528,2745.7,2745.6,0.72827]
[1749742099488,0.437,2745.7,2745.6,0.72827]
[1749742101397,3.28062525,2746.3,2746.2,0.72812]
[1749742102395,3.28062525,2746.3,2745.8,8.93654]
[1749742102698,0.72815,2746.1,2746.0,0.72815]
[1749742103094,3.28062525,2746.3,2745.8,7.116]
[1749742103492,3.28062525,2746.3,2746.2,0.72812]
[1749742103691,4.00872525,2746.3,2746.2,0.72812]
[1749742103989,0.07282525,2746.3,2746.2,0.72812]
[1749742106700,3.2078,2747.1,2747.0,0.72791]
[1749742107190,3.93571,2747.1,2746.9,0.72792]
[1749742107395,3.93571,2747.1,2747.0,0.72791]
[1749742107896,3.2078,2747.1,2747.0,0.72791]
[1749742108094,0.7333008,2747.3,2746.9,3.2078]
[1749742108293,0.0054608,2747.3,2747.2,0.72786]
[1749742108495,3.2078,2747.8,2747.7,0.72773]
[1749742108893,3.2078,2748.2,2748.1,0.72762]
[1749742109094,3.2078,2748.6,2748.0,1.81909]
[1749742109296,3.2078,2748.6,2748.0,7.181]
[1749742109594,3.2132608,2748.6,2748.4,0.72753]
[1749742109794,3.2132608,2748.6,2748.2,0.0054608]
[1749742109994,3.9407608,2748.6,2748.3,0.72755]
[1749742110194,3.9407608,2748.6,2748.2,0.0054608]
[1749742110195,0.72753,2748.5,2748.2,0.7330408]
[1749742110392,0.72753,2748.5,2748.3,0.72756]
[1749742110592,0.72757,2748.3,2748.2,0.0054608]
[1749742113698,3.93537,2748.3,2748.2,0.0054608]
[1749742113992,8.93537,2748.3,2748.2,0.0054608]
[1749742114194,0.7277,2747.8,2747.7,0.7277]
[1749742114390,0.72769,2747.9,2747.8,0.72768]
[1749742114593,5.02676,2748.3,2747.5,7.179]
[1749742114594,0.72778,2747.6,2747.5,7.90677]
[1749742114791,0.72775,2747.6,2747.5,7.179]
[1749742114999,0.72783,2747.3,2747.2,3.2078]
[1749742115704,0.72783,2747.3,2747.2,0.72786]
[1749742115995,0.72788,2747.2,2747.1,0.72787]
[1749742116203,0.72789,2747.1,2747.0,7.9123508]
[1749742116403,0.72789,2747.1,2747.0,7.1844608]
[1749742116708,0.72787,2747.2,2747.0,7.1844608]
[1749742116904,0.72787,2747.2,2747.1,0.72787]
[1749742117601,0.72789,2747.1,2747.0,7.9123708]
[1749742117906,0.72789,2747.1,2747.0,0.7333608]
[1749742118308,0.72789,2747.1,2747.0,0.0054608]
[1749742118707,0.72789,2747.1,2747.0,0.7333708]
[1749742119005,0.72789,2747.1,2747.0,0.0054608]
[1749742119203,0.72789,2747.1,2747.0,0.7333708]
[1749742119508,3.2078,2747.4,2747.1,0.72788]
[1749742119703,0.72789,2747.1,2747.0,0.0054608]
[1749742121306,3.2078,2747.4,2747.3,0.72783]
[1749742121506,3.2078,2748.1,2747.3,5.02733]
[1749742121702,3.2078,2748.1,2747.3,10.3858]
[1749742121900,0.72781,2747.4,2747.2,0.72784]
[1749742122101,0.72781,2747.4,2747.0,0.0054608]
[1749742122102,0.72786,2747.2,2747.1,7.90588]
[1749742122407,0.72786,2747.2,2747.1,7.178]
[1749742122602,0.72783,2747.4,2747.1,7.178]
[1749742122802,0.72784,2747.3,2747.2,0.72784]
[1749742123104,3.2078,2747.8,2747.0,0.0054608]
[1749742123302,3.2078,2747.7,2747.0,0.0054608]
[1749742123605,0.72788,2747.2,2747.1,0.72788]
[1749742124002,0.72789,2747.1,2747.0,0.7333508]
[1749742124303,0.72789,2747.1,2747.0,0.0054608]
[1749742125008,3.93569,2747.1,2747.0,0.0054608]
[1749742131315,0.7281,2746.3,2746.2,3.2078]
[1749742131702,1.82019,2746.4,2745.8,3.2078]
[1749742131911,0.7282,2745.9,2745.8,3.2078]
[1749742132106,0.7282,2745.9,2745.8,3.93603]
[1749742132813,0.0054608,2746.1,2746.0,0.72818]
[1749742133206,0.0054608,2746.1,2746.0,5.72818]
[1749742134506,0.7282,2746.0,2745.8,3.2078]
[1749742134714,0.7282,2745.9,2745.8,3.93602]
[1749742134902,0.0054608,2746.1,2745.8,3.2078]
[1749742135106,0.0054608,2746.1,2746.0,0.72818]
[1749742135505,0.7282,2745.9,2745.8,3.2078]
[1749742135702,0.7282,2745.9,2745.6,0.0054608]
[1749742135703,0.72826,2745.7,2745.6,0.0054608]
[1749742139511,0.72826,2745.7,2745.0,3.93623]
[1749742139512,5.02845,2745.7,2745.0,3.93623]
[1749742139716,0.72844,2745.0,2744.9,0.72847]
[1749742140111,3.2078,2745.2,2744.7,1.82129]
[1749742140312,3.2078,2745.2,2745.1,0.72842]
[1749742140513,0.7283,2745.6,2745.5,0.72829]
[1749742140707,3.2078,2745.8,2745.7,0.72826]
[1749742141019,0.0054608,2746.1,2745.7,0.72826]
[1749742141020,0.0054608,2746.1,2746.0,0.72818]
[1749742143719,0.0054608,2746.1,2746.0,3.93598]
[1749742144620,3.2078,2746.7,2746.6,0.72802]
[1749742144923,1.81949,2747.5,2746.6,3.2078]
[1749742144924,3.2078,2747.4,2746.6,3.2078]
[1749742145119,3.2119,2747.4,2747.0,0.72789]
[1749742145326,0.72786,2747.2,2747.1,0.72788]
[1749742145518,0.0095608,2747.4,2747.3,0.72783]
[1749742146429,0.0095608,2747.4,2747.3,3.93563]
[1749742146931,0.0095608,2747.4,2747.3,15.96463]
[1749742147535,1e-08,2747.4,2747.3,15.96463]
[1749742148420,1e-08,2747.4,2747.3,51.76363]
[1749742148713,1e-08,2747.4,2747.3,56.76363]
[1749742150122,1e-08,2747.4,2747.3,51.76363]
[1749742151128,1e-08,2747.4,2747.3,44.73563]
[1749742151725,1e-08,2747.4,2747.3,0.72783]
[1749742153325,1e-08,2747.4,2747.3,5.72783]
[1749742153721,1e-08,2747.4,2747.3,29.99083]
[1749742153926,1e-08,2747.4,2747.3,24.99083]
[1749742154128,1e-08,2747.4,2747.3,7.75483]
[1749742155032,1e-08,2747.4,2747.3,0.72783]
[1749742155430,1e-08,2747.4,2747.3,7.75483]
[1749742156129,1e-08,2747.4,2747.3,0.72783]
[1749742164549,1e-08,2747.4,2747.3,7.75383]
[1749742165644,0.5891,2747.9,2747.8,0.7277]
[1749742165850,0.5891,2747.9,2747.8,10.9615]
[1749742166047,0.5891,2747.9,2747.8,3.9355]
[1749742166748,1.31677,2747.9,2747.8,3.2078]
[1749742166956,1.31677,2747.9,2747.8,3.9355]
[1749742167449,0.5891,2747.9,2747.8,3.9355]
[1749742168649,1.8095,2747.9,2747.8,3.9355]
[1749742172457,1.8095,2747.9,2747.8,0.7277]
[1749742172750,1.8095,2747.9,2747.8,0.6721]
[1749742176251,0.5891,2747.9,2747.8,0.6721]
[1749742176654,3.2078,2748.9,2748.1,3.63813]
[1749742176855,3.2078,2748.9,2748.8,0.72744]
[1749742178056,0.0054608,2749.1,2749.0,0.72738]
[1749742178256,0.0054608,2749.1,2749.0,7.60038]
[1749742180056,3.2078,2750.5,2749.0,15.0808]
[1749742180246,0.72712,2750.0,2749.9,3.2078]
[1749742180447,0.72722,2749.6,2749.5,3.2078]
[1749742180855,5.02551,2750.2,2749.5,3.2078]
[1749742181056,0.7272,2749.7,2749.6,0.0054608]
[1749742181649,0.0054608,2750.1,2749.6,0.0054608]
[1749742181853,0.7272,2749.7,2749.6,0.0054608]
[1749742182054,0.0054608,2750.1,2749.6,0.0054608]
[1749742182262,0.72719,2749.8,2749.6,0.0054608]
[1749742182459,0.7272,2749.7,2749.6,0.0054608]
[1749742182659,0.72719,2749.8,2749.6,0.7326708]
[1749742182860,0.7272,2749.7,2749.6,0.0054608]
[1749742183161,0.72719,2749.8,2749.6,0.7326808]
[1749742183353,0.7272,2749.7,2749.6,0.0054608]
[1749742183755,0.72717,2749.8,2749.6,0.0054608]
[1749742184051,0.72712,2750.0,2749.6,0.0054608]
[1749742184255,0.72715,2749.9,2749.8,0.72716]
[1749742184450,0.7272,2749.7,2749.6,0.0054608]
[1749742184859,0.72719,2749.8,2749.7,0.72719]
[1749742185261,0.7272,2749.7,2749.6,0.7326608]